fUST/lending_fUST_20240904
["ID","MTS","AMOUNT","RATE_DAILY","PERIOD"]
[337086805,1725417054561,-500.0,0.00027671,2]
[337086806,1725417054570,-500.0,0.00027671,2]
[337086807,1725417054579,-502.91233412,0.00027671,2]
[337086808,1725417054589,-500.0,0.00027671,2]
[337086809,1725417054598,-500.0,0.00027671,2]
[337086810,1725417054606,-500.0,0.00027671,2]
[337086811,1725417054617,-500.0,0.00027671,2]
[337086812,1725417054627,-500.0,0.00027671,2]
[337086813,1725417054637,-500.0,0.00027671,2]
[337086814,1725417054646,-500.0,0.00027671,2]
[337086815,1725417054656,-243.02935337,0.00027671,2]
[337086816,1725417054665,-500.0,0.00027671,2]
[337086817,1725417054674,-500.0,0.00027671,2]
[337086818,1725417054684,-500.0,0.00027671,2]
[337086819,1725417054694,-500.0,0.00027671,2]
[337086820,1725417054705,-208.70691742,0.00027671,2]
[337086821,1725417054715,-500.0,0.00027671,2]
[337086822,1725417054726,-505.80706238,0.00027671,2]
[337086823,1725417054739,-500.0,0.00027671,2]
[337086824,1725417054748,-500.0,0.00027671,2]
[337086825,1725417054758,-209.75145078,0.00027671,2]
[337086826,1725417054768,-500.0,0.00027671,2]
[337086827,1725417054777,-500.0,0.00027671,2]
[337086828,1725417054786,-510.73524752,0.00027671,2]
[337086829,1725417054795,-500.0,0.00027671,2]
[337086830,1725417054804,-503.30897936,0.00027671,2]
[337086831,1725417054813,-500.0,0.00027671,2]
[337086832,1725417054823,-779.97,0.00027671,2]
[337086833,1725417054832,-500.0,0.00027671,2]
[337086834,1725417054842,-500.0,0.00027671,2]
[337086835,1725417054851,-500.0,0.00027671,2]
[337086836,1725417054861,-500.0,0.00027671,2]
[337086837,1725417054875,-500.0,0.00027671,2]
[337086838,1725417054884,-500.0,0.00027671,2]
[337086839,1725417054894,-500.0,0.00027671,2]
[337086840,1725417054904,-500.0,0.00027671,2]
[337086841,1725417054913,-504.82470072,0.00027671,2]
[337086842,1725417054921,-500.0,0.00027671,2]
[337086843,1725417054930,-500.0,0.00027671,2]
[337086844,1725417054940,-500.0,0.00027671,2]
[337086845,1725417054949,-500.0,0.00027671,2]
[337086846,1725417054959,-1180.69,0.00027671,2]
[337086847,1725417054969,-500.0,0.00027671,2]
[337086848,1725417054978,-500.0,0.00027671,2]
[337086849,1725417054987,-508.15552809,0.00027671,2]
[337086850,1725417054996,-500.0,0.00027671,2]
[337086851,1725417055006,-611.26974093,0.00027671,2]
[337086852,1725417055015,-500.0,0.00027671,2]
[337086853,1725417055032,-500.0,0.00027671,2]
[337086854,1725417055052,-205.12930649,0.00027671,2]
[337086855,1725417055071,-500.0,0.00027671,2]
[337086856,1725417055091,-500.0,0.00027671,2]
[337086857,1725417055111,-500.0,0.00027671,2]
[337086858,1725417055132,-500.0,0.00027671,2]
[337086859,1725417055154,-500.0,0.00027671,2]
[337086860,1725417055167,-500.0,0.00027671,2]
[337086861,1725417055184,-500.0,0.00027671,2]
[337086862,1725417055205,-500.0,0.00027671,2]
[337086863,1725417055228,-500.0,0.00027671,2]
[337086864,1725417055242,-500.0,0.00027671,2]
[337086865,1725417055262,-748.64,0.00027671,2]
[337086866,1725417055283,-500.0,0.00027671,2]
[337086867,1725417055301,-500.0,0.00027671,2]
[337086868,1725417055316,-500.0,0.00027671,2]
[337086869,1725417055330,-500.0,0.00027671,2]
[337086870,1725417055344,-500.0,0.00027671,2]
[337086871,1725417055359,-198.60395644,0.00027671,2]
[337086872,1725417055384,-500.0,0.00027671,2]
[337086873,1725417055399,-500.0,0.00027671,2]
[337086874,1725417055412,-500.0,0.00027671,2]
[337086875,1725417055427,-500.0,0.00027671,2]
[337086876,1725417055442,-200.0,0.00027671,2]
[337086877,1725417055456,-500.0,0.00027671,2]
[337086878,1725417055471,-502.19818194,0.00027671,2]
[337086879,1725417055484,-480.89448273,0.00027671,2]
[337086880,1725417055499,-601.52,0.00027671,2]
[337086881,1725417055513,-500.0,0.00027671,2]
[337086882,1725417055530,-500.0,0.00027671,2]
[337086883,1725417055546,-500.0,0.00027671,2]
[337086884,1725417055561,-742.04,0.00027671,2]
[337086885,1725417055585,-500.0,0.00027671,2]
[337086886,1725417055599,-500.0,0.00027671,2]
[337086887,1725417055617,-500.0,0.00027671,2]
[337086888,1725417055637,-500.0,0.00027671,2]
[337086889,1725417055653,-500.0,0.00027671,2]
[337086890,1725417055670,-256.00446718,0.00027671,2]
[337086891,1725417055686,-500.0,0.00027671,2]
[337086892,1725417055702,-1000.0,0.00027671,60]
[337086893,1725417055718,-500.0,0.00027671,2]
[337086894,1725417055733,-500.0,0.00027671,2]
[337086895,1725417055753,-500.0,0.00027671,2]
[337086896,1725417055768,-500.0,0.00027671,2]
[337086897,1725417055782,-500.0,0.00027671,2]
[337086898,1725417055798,-500.0,0.00027671,2]
[337086899,1725417055813,-500.0,0.00027671,2]
[337086900,1725417055828,-500.0,0.00027671,2]
[337086901,1725417055844,-500.0,0.00027671,2]
[337086902,1725417055860,-383.18389204,0.00027671,2]
[337086903,1725417055878,-500.0,0.00027671,2]
[337086904,1725417055895,-500.0,0.00027671,2]
[337086905,1725417056015,-500.0,0.00027671,2]
[337086906,1725417056030,-500.0,0.00027671,2]
[337086907,1725417056041,-500.0,0.00027671,2]
[337086908,1725417056051,-500.0,0.00027671,2]
[337086909,1725417056060,-500.0,0.00027671,2]
[337086910,1725417056070,-500.0,0.00027671,2]
[337086911,1725417056079,-505.05608332,0.00027671,2]
[337086912,1725417056089,-500.0,0.00027671,2]
[337086913,1725417056099,-500.0,0.00027671,2]
[337086914,1725417056110,-500.0,0.00027671,2]
[337086915,1725417056122,-500.0,0.00027671,2]
[337086916,1725417056132,-1556.83,0.00027671,2]
[337086917,1725417056141,-500.0,0.00027671,2]
[337086918,1725417056152,-500.0,0.00027671,2]
[337086919,1725417056162,-500.0,0.00027671,2]
[337086920,1725417056172,-538.0,0.00027671,2]
[337086921,1725417056183,-500.0,0.00027671,2]
[337086922,1725417056193,-500.0,0.00027671,2]
[337086923,1725417056208,-500.0,0.00027671,2]
[337086924,1725417056218,-500.0,0.00027671,2]
[337086925,1725417056227,-500.0,0.00027671,2]
[337086926,1725417056237,-500.0,0.00027671,2]
[337086927,1725417056248,-500.0,0.00027671,2]
[337086928,1725417056258,-500.0,0.00027671,2]
[337086929,1725417056278,-500.0,0.00027671,2]
[337086930,1725417056291,-500.0,0.00027671,2]
[337086931,1725417056300,-500.0,0.00027671,2]
[337086932,1725417056310,-500.0,0.00027671,2]
[337086933,1725417056320,-500.0,0.00027671,2]
[337086934,1725417056330,-500.0,0.00027671,2]
[337086935,1725417056340,-500.0,0.00027671,2]
[337086936,1725417056350,-506.79,0.00027671,2]
[337086937,1725417056360,-500.0,0.00027671,2]
[337086938,1725417056372,-500.0,0.00027671,2]
[337086939,1725417056382,-500.0,0.00027671,2]
[337086940,1725417056392,-500.0,0.00027671,2]
[337086941,1725417056402,-500.0,0.00027671,2]
[337086942,1725417056411,-500.0,0.00027671,2]
[337086943,1725417056422,-500.0,0.00027671,2]
[337086944,1725417056431,-500.0,0.00027671,2]
[337086945,1725417056441,-500.0,0.00027671,2]
[337086946,1725417056451,-500.0,0.00027671,2]
[337086947,1725417056461,-500.0,0.00027671,2]
[337086948,1725417056471,-500.0,0.00027671,2]
[337086949,1725417056480,-500.0,0.00027671,2]
[337086950,1725417056490,-500.0,0.00027671,2]
[337086951,1725417056500,-500.0,0.00027671,2]
[337086952,1725417056510,-500.0,0.00027671,2]
[337086953,1725417056519,-500.0,0.00027671,2]
[337086954,1725417056529,-500.0,0.00027671,2]
[337086955,1725417056538,-500.0,0.00027671,2]
[337086956,1725417056548,-500.0,0.00027671,2]
[337086957,1725417056557,-500.0,0.00027671,2]
[337086958,1725417056566,-500.0,0.00027671,2]
[337086959,1725417056576,-350.81473612,0.00027671,2]
[337086960,1725417056585,-500.0,0.00027671,2]
[337086961,1725417056595,-500.0,0.00027671,2]
[337086962,1725417056604,-500.0,0.00027671,2]
[337086963,1725417056614,-500.0,0.00027671,2]
[337086964,1725417056624,-273.0,0.00027671,2]
[337086965,1725417056634,-500.0,0.00027671,2]
[337086966,1725417056643,-506.1300333,0.00027671,2]
[337086967,1725417056653,-500.0,0.00027671,2]
[337086968,1725417056662,-236.03780758,0.00027671,2]
[337086969,1725417056672,-500.0,0.00027671,2]
[337086970,1725417056682,-500.0,0.00027671,2]
[337086971,1725417056691,-903.56,0.00027671,2]
[337086972,1725417056701,-500.0,0.00027671,2]
[337086973,1725417056710,-500.0,0.00027671,2]
[337086974,1725417056720,-500.0,0.00027671,2]
[337086975,1725417056730,-500.0,0.00027671,2]
[337086976,1725417056739,-500.0,0.00027671,2]
[337086977,1725417056748,-500.0,0.00027671,2]
[337086978,1725417056758,-500.0,0.00027671,2]
[337086979,1725417056767,-500.0,0.00027671,2]
[337086980,1725417056777,-500.0,0.00027671,2]
[337086981,1725417056787,-502.68470625,0.00027671,2]
[337086982,1725417056797,-500.0,0.00027671,2]
[337086983,1725417056806,-500.0,0.00027671,2]
[337086984,1725417056815,-500.0,0.00027671,2]
[337086985,1725417056825,-500.0,0.00027671,2]
[337086986,1725417056835,-770.62,0.00027671,2]
[337086987,1725417056845,-500.0,0.00027671,2]
[337086988,1725417056854,-500.0,0.00027671,2]
[337086989,1725417056864,-500.0,0.00027671,2]
[337086990,1725417056875,-500.0,0.00027671,2]
[337086991,1725417056885,-500.0,0.00027671,2]
[337086992,1725417056898,-548.39,0.00027671,2]
[337086993,1725417056909,-2146.4,0.00027671,2]
[337086994,1725417056920,-500.0,0.00027671,2]
[337086995,1725417056931,-505.7365628,0.00027671,2]
[337086996,1725417056943,-500.0,0.00027671,2]
[337086997,1725417056954,-500.0,0.00027671,2]
[337086998,1725417056964,-500.0,0.00027671,2]
[337086999,1725417056976,-500.0,0.00027671,2]
[337087000,1725417056985,-709.24,0.00027671,2]
[337087001,1725417056995,-500.0,0.00027671,2]
[337087002,1725417057006,-500.0,0.00027671,2]
[337087003,1725417057016,-546.21645481,0.00027671,2]
[337087004,1725417057027,-500.0,0.00027671,2]
[337087005,1725417057039,-875.46,0.00027671,2]
[337087006,1725417057050,-500.0,0.00027671,2]
[337087007,1725417057061,-500.0,0.00027671,2]
[337087008,1725417057071,-500.0,0.00027671,2]
[337087009,1725417057081,-500.0,0.00027671,2]
[337087010,1725417057094,-500.0,0.00027671,2]
[337087011,1725417057107,-500.0,0.00027671,2]
[337087012,1725417057119,-500.0,0.00027671,2]
[337087013,1725417057131,-255.7298086,0.00027671,2]
[337087014,1725417057141,-1260.65,0.00027671,2]
[337087015,1725417057151,-552.02,0.00027671,2]
[337087016,1725417057162,-863.89,0.00027671,2]
[337087017,1725417057172,-500.0,0.00027671,2]
[337087018,1725417057183,-500.0,0.00027671,2]
[337087019,1725417057195,-500.0,0.00027671,2]
[337087020,1725417057209,-500.0,0.00027671,2]
[337087021,1725417057219,-500.0,0.00027671,2]
[337087022,1725417057230,-500.0,0.00027671,2]
[337087023,1725417057241,-500.0,0.00027671,2]
[337087024,1725417057251,-500.0,0.00027671,2]
[337087025,1725417057260,-500.0,0.00027671,2]
[337087026,1725417057271,-500.0,0.00027671,2]
[337087027,1725417057284,-500.0,0.00027671,2]
[337087028,1725417057296,-500.0,0.00027671,2]
[337087029,1725417057307,-500.0,0.00027671,2]
[337087030,1725417057318,-500.0,0.00027671,2]
[337087031,1725417057329,-500.0,0.00027671,2]
[337087032,1725417057344,-500.0,0.00027671,2]
[337087033,1725417057355,-500.0,0.00027671,2]
[337087034,1725417057365,-500.0,0.00027671,2]
[337087035,1725417057377,-500.0,0.00027671,2]
[337087036,1725417057386,-389.43320899,0.00027671,2]
[337087037,1725417057396,-500.0,0.00027671,2]
[337087038,1725417057406,-500.0,0.00027671,2]
[337087039,1725417057415,-500.0,0.00027671,2]
[337087040,1725417057425,-500.0,0.00027671,2]
[337087041,1725417057435,-500.0,0.00027671,2]
[337087042,1725417057447,-422.84008463,0.00027671,2]
[337087043,1725417057457,-500.0,0.00027671,2]
[337087044,1725417057466,-1362.9,0.00027671,2]
[337087045,1725417057476,-500.0,0.00027671,2]
[337087046,1725417057486,-500.0,0.00027671,2]
[337087047,1725417057498,-500.0,0.00027671,2]
[337087048,1725417057508,-500.0,0.00027671,2]
[337087049,1725417057518,-500.0,0.00027671,2]
[337087050,1725417057528,-500.0,0.00027671,2]
[337087051,1725417057538,-500.0,0.00027671,2]
[337087052,1725417057547,-500.0,0.00027671,2]
[337087053,1725417057559,-500.0,0.00027671,2]
[337087054,1725417057569,-500.0,0.00027671,2]
[337087055,1725417057581,-506.88496892,0.00027671,2]
[337087056,1725417057592,-500.0,0.00027671,2]
[337087057,1725417057602,-500.0,0.00027671,2]
[337087058,1725417057613,-500.0,0.00027671,2]
[337087059,1725417057624,-503.06564682,0.00027671,2]
[337087060,1725417057636,-500.0,0.00027671,2]
[337087061,1725417057648,-500.0,0.00027671,2]
[337087062,1725417057658,-500.0,0.00027671,2]
[337087063,1725417057770,-500.0,0.00027671,2]
[337087064,1725417057781,-502.32316359,0.00027671,2]
[337087065,1725417057791,-2511.12,0.00027671,2]
[337087066,1725417057801,-500.0,0.00027671,2]
[337087067,1725417057811,-500.0,0.00027671,2]
[337087068,1725417057822,-609.26083193,0.00027671,2]
[337087069,1725417057833,-500.0,0.00027671,2]
[337087070,1725417057844,-500.0,0.00027671,2]
[337087071,1725417057855,-500.0,0.00027671,2]
[337087072,1725417057865,-500.0,0.00027671,2]
[337087073,1725417057875,-500.0,0.00027671,2]
[337087074,1725417057885,-403.50056193,0.00027671,2]
[337087075,1725417058145,-9.62106095,0.00027671,2]
[337087076,1725417058574,-500.0,0.00027397,2]
[337087077,1725417058585,-86.87837712,0.00027671,2]
[337087078,1725417058594,-500.0,0.00027671,2]
[337087079,1725417058604,-988.22,0.00027671,2]
[337087080,1725417058613,-500.0,0.00027671,2]
[337087081,1725417058624,-500.0,0.00027671,2]
[337087082,1725417058633,-500.0,0.00027671,2]
[337087083,1725417058642,-1562.21,0.00027671,2]
[337087084,1725417058652,-503.14813987,0.00027671,2]
[337087085,1725417058661,-823.4,0.00027671,2]
[337087086,1725417058670,-509.16360634,0.00027671,2]
[337087087,1725417058680,-500.0,0.00027671,2]
[337087088,1725417058689,-508.86539734,0.00027671,2]
[337087089,1725417058699,-500.0,0.00027671,2]
[337087090,1725417058708,-500.0,0.00027671,2]
[337087091,1725417058718,-500.0,0.00027671,2]
[337087092,1725417058728,-500.0,0.00027671,2]
[337087093,1725417058737,-500.0,0.00027671,2]
[337087094,1725417058751,-500.0,0.00027671,2]
[337087095,1725417058761,-500.0,0.00027671,2]
[337087096,1725417058770,-879.01,0.00027671,2]
[337087097,1725417058780,-961.39,0.00027671,2]
[337087098,1725417058790,-500.0,0.00027671,2]
[337087099,1725417058799,-512.65516141,0.00027671,2]
[337087100,1725417058808,-500.0,0.00027671,2]
[337087101,1725417058818,-500.0,0.00027671,2]
[337087102,1725417058828,-500.0,0.00027671,2]
[337087103,1725417058837,-630.57,0.00027671,2]
[337087104,1725417058847,-3014.27,0.00027671,2]
[337087105,1725417058856,-500.0,0.00027671,2]
[337087106,1725417058866,-345.60436367,0.00027671,2]
[337087107,1725417058884,-500.0,0.00027671,2]
[337087108,1725417058894,-506.70534494,0.00027671,2]
[337087109,1725417058903,-500.0,0.00027671,2]
[337087110,1725417058913,-1975.99,0.00027671,2]
[337087111,1725417058923,-500.0,0.00027671,2]
[337087112,1725417058932,-3016.82,0.00027671,2]
[337087113,1725417058942,-500.0,0.00027671,2]
[337087114,1725417058952,-500.0,0.00027671,2]
[337087115,1725417058963,-500.0,0.00027671,2]
[337087116,1725417058972,-500.0,0.00027671,2]
[337087117,1725417058982,-500.0,0.00027671,2]
[337087118,1725417058994,-500.0,0.00027671,2]
[337087119,1725417059005,-645.15,0.00027671,2]
[337087120,1725417059015,-517.11715016,0.00027671,2]
[337087121,1725417059025,-3467.75,0.00027671,2]
[337087122,1725417059154,-500.0,0.00027671,2]
[337087123,1725417059163,-500.0,0.00027671,2]
[337087124,1725417059177,-500.0,0.00027671,2]
[337087125,1725417059186,-579.75,0.00027671,2]
[337087126,1725417059196,-500.0,0.00027671,2]
[337087127,1725417059207,-60590.83,0.00027671,2]
[337087128,1725417059217,-500.0,0.00027671,2]
[337087129,1725417059226,-4457.7,0.00027671,2]
[337087130,1725417059235,-500.0,0.00027671,2]
[337087131,1725417059244,-500.0,0.00027671,2]
[337087132,1725417059254,-1902.81,0.00027671,2]
[337087133,1725417059264,-500.0,0.00027671,2]
[337087134,1725417059273,-500.0,0.00027671,2]
[337087135,1725417059283,-500.0,0.00027671,2]
[337087136,1725417059292,-500.0,0.00027671,2]
[337087137,1725417059302,-500.0,0.00027671,2]
[337087138,1725417059312,-500.0,0.00027671,2]
[337087139,1725417059321,-508.49292746,0.00027671,2]
[337087140,1725417059332,-500.0,0.00027671,2]
[337087141,1725417059341,-670.92,0.00027671,2]
[337087142,1725417059351,-500.0,0.00027671,2]
[337087143,1725417059360,-500.0,0.00027671,2]
[337087144,1725417059370,-1830.43,0.00027671,2]
[337087145,1725417059380,-5574.14953163,0.00027671,2]
[337087146,1725417059395,-978.75046837,0.00027671,2]
[337087147,1725417059404,-500.0,0.00027671,2]
[337087148,1725417059413,-500.0,0.00027671,2]
[337087149,1725417059422,-500.0,0.00027671,2]
[337087150,1725417059431,-500.0,0.00027671,2]
[337087151,1725417059441,-500.0,0.00027671,2]
[337087152,1725417059450,-27038.69,0.00027671,2]
[337087153,1725417059459,-500.0,0.00027671,2]
[337087154,1725417059469,-603.51,0.00027671,2]
[337087155,1725417059478,-713.28,0.00027671,2]
[337087156,1725417059487,-500.0,0.00027671,2]
[337087157,1725417059496,-500.0,0.00027671,2]
[337087158,1725417059505,-500.0,0.00027671,2]
[337087159,1725417059514,-509.7304621,0.00027671,2]
[337087160,1725417059526,-500.0,0.00027671,2]
[337087161,1725417059536,-500.0,0.00027671,2]
[337087162,1725417059545,-500.0,0.00027671,2]
[337087163,1725417059554,-1600.29,0.00027671,2]
[337087164,1725417059564,-500.0,0.00027671,2]
[337087165,1725417059573,-500.0,0.00027671,2]
[337087166,1725417059582,-500.0,0.00027671,2]
[337087167,1725417059591,-500.0,0.00027671,2]
[337087168,1725417059601,-500.0,0.00027671,2]
[337087169,1725417059611,-500.0,0.00027671,2]
[337087170,1725417059622,-500.0,0.00027671,2]
[337087171,1725417059631,-1167.84,0.00027671,2]
[337087172,1725417059641,-2683.35,0.00027671,2]
[337087173,1725417059650,-2310.23,0.00027671,2]
[337087174,1725417059660,-500.0,0.00027671,2]
[337087175,1725417059669,-1605.45,0.00027671,2]
[337087176,1725417059678,-500.0,0.00027671,2]
[337087177,1725417059688,-500.0,0.00027671,2]
[337087178,1725417059698,-4458.22,0.00027671,2]
[337087179,1725417059710,-500.0,0.00027671,2]
[337087180,1725417059723,-553.06170415,0.00027671,2]
[337087181,1725417059734,-1344.29,0.00027671,2]
[337087182,1725417059744,-500.0,0.00027671,2]
[337087183,1725417059754,-500.0,0.00027671,2]
[337087184,1725417059764,-7580.23,0.00027671,2]
[337087185,1725417059773,-1578.61,0.00027671,2]
[337087186,1725417059783,-1305.39,0.00027671,2]
[337087187,1725417059794,-500.0,0.00027671,2]
[337087188,1725417059804,-500.0,0.00027671,2]
[337087189,1725417059816,-500.0,0.00027671,2]
[337087190,1725417059827,-500.0,0.00027671,2]
[337087191,1725417059838,-505.25146645,0.00027671,2]
[337087192,1725417059849,-500.0,0.00027671,2]
[337087193,1725417059860,-1528.68,0.00027671,2]
[337087194,1725417059870,-6579.5,0.00027671,2]
[337087195,1725417059880,-500.0,0.00027671,2]
[337087196,1725417059890,-706.72,0.00027671,2]
[337087197,1725417059900,-968.56,0.00027671,2]
[337087198,1725417059909,-500.0,0.00027671,2]
[337087199,1725417059919,-500.0,0.00027671,2]
[337087200,1725417059928,-500.0,0.00027671,2]
[337087201,1725417059937,-10791.0,0.00027671,2]
[337087202,1725417059948,-3236.16,0.00027671,2]
[337087203,1725417059958,-500.0,0.00027671,2]
[337087204,1725417059967,-814.94,0.00027671,2]
[337087205,1725417059976,-508.77466606,0.00027671,2]
[337087206,1725417059985,-500.0,0.00027671,2]
[337087207,1725417059996,-500.0,0.00027671,2]
[337087208,1725417060005,-176.16141926,0.00027671,2]
[337087209,1725417060015,-1206.91,0.00027671,2]
[337087210,1725417060024,-12620.37,0.00027671,2]
[337087211,1725417060033,-500.0,0.00027671,2]
[337087212,1725417060043,-744.92,0.00027671,2]
[337087213,1725417060053,-500.0,0.00027671,2]
[337087214,1725417060063,-500.0,0.00027671,2]
[337087215,1725417060074,-1328.8,0.00027671,2]
[337087216,1725417060084,-500.0,0.00027671,2]
[337087217,1725417060094,-500.0,0.00027671,2]
[337087218,1725417060104,-500.0,0.00027671,2]
[337087219,1725417060114,-503.34862044,0.00027671,2]
[337087220,1725417060125,-500.0,0.00027671,2]
[337087221,1725417060137,-500.0,0.00027671,2]
[337087222,1725417060146,-500.0,0.00027671,2]
[337087223,1725417060158,-500.0,0.00027671,2]
[337087224,1725417060171,-1129.95,0.00027671,2]
[337087225,1725417060180,-12988.85,0.00027671,2]
[337087226,1725417060190,-500.0,0.00027671,2]
[337087227,1725417060200,-500.0,0.00027671,2]
[337087228,1725417060212,-500.0,0.00027671,2]
[337087229,1725417060222,-500.0,0.00027671,2]
[337087230,1725417060231,-500.0,0.00027671,2]
[337087231,1725417060241,-1069.7,0.00027671,2]
[337087232,1725417060251,-803.92,0.00027671,2]
[337087233,1725417060262,-500.0,0.00027671,2]
[337087234,1725417060272,-801.13,0.00027671,2]
[337087235,1725417060283,-500.0,0.00027671,2]
[337087236,1725417060293,-5294.22,0.00027671,2]
[337087237,1725417060303,-1810.95,0.00027671,2]
[337087238,1725417060313,-565.48,0.00027671,2]
[337087239,1725417060323,-500.0,0.00027671,2]
[337087240,1725417060333,-500.0,0.00027671,2]
[337087241,1725417060343,-636.63,0.00027671,2]
[337087242,1725417060353,-500.0,0.00027671,2]
[337087243,1725417060363,-907.41,0.00027671,2]
[337087244,1725417060373,-500.0,0.00027671,2]
[337087245,1725417060383,-617.18,0.00027671,2]
[337087246,1725417060392,-500.0,0.00027671,2]
[337087247,1725417060403,-500.0,0.00027671,2]
[337087248,1725417060412,-500.0,0.00027671,2]
[337087249,1725417060422,-500.0,0.00027671,2]
[337087250,1725417060431,-626.98,0.00027671,2]
[337087251,1725417060441,-500.0,0.00027671,2]
[337087252,1725417060451,-921.03,0.00027671,2]
[337087253,1725417060460,-616.57,0.00027671,2]
[337087254,1725417060471,-1111.15,0.00027671,2]
[337087255,1725417060482,-500.0,0.00027671,2]
[337087256,1725417060492,-500.0,0.00027671,2]
[337087257,1725417060502,-500.0,0.00027671,2]
[337087258,1725417060579,-500.0,0.00027671,2]
[337087259,1725417060599,-500.0,0.00027671,2]
[337087260,1725417060610,-500.0,0.00027671,2]
[337087261,1725417060621,-500.0,0.00027671,2]
[337087262,1725417060631,-500.0,0.00027671,2]
[337087263,1725417060640,-500.0,0.00027671,2]
[337087264,1725417060649,-240.44813289,0.00027671,2]
[337087265,1725417060660,-500.0,0.00027671,2]
[337087266,1725417060669,-507.38142214,0.00027671,2]
[337087267,1725417060677,-507.38923002,0.00027671,2]
[337087268,1725417060687,-1674.79,0.00027671,2]
[337087269,1725417060698,-1474.04,0.00027671,2]
[337087270,1725417060708,-500.0,0.00027671,2]
[337087271,1725417060718,-1207.24,0.00027671,2]
[337087272,1725417060729,-500.0,0.00027671,2]
[337087273,1725417060741,-500.0,0.00027671,2]
[337087274,1725417060751,-5437.43,0.00027671,2]
[337087275,1725417060760,-500.0,0.00027671,2]
[337087276,1725417060770,-656.41,0.00027671,2]
[337087277,1725417060779,-676.23,0.00027671,2]
[337087278,1725417060790,-157.79768832,0.00027671,2]
[337087279,1725417062558,500.0,0.00025,2]
[337087280,1725417110154,500.0,0.00025,2]
[337087284,1725417946133,-500.0,0.00022543,2]
[337087285,1725417946156,-389.86620537,0.0002373,2]
[337087286,1725417953114,-110.13379463,0.0002373,2]
[337087287,1725417953139,-171.164141,0.00024253,2]
[337087288,1725417953163,-150.0,0.00024398,3]
[337087289,1725417953187,-201.4213272,0.00024447,2]
[337087290,1725417953211,-150.0,0.00024823,5]
[337087291,1725417953235,-500.0,0.00024979,2]
[337087292,1725417953257,-500.0,0.00025,2]
[337087293,1725417953283,-150.0,0.00025248,5]
[337087294,1725417953307,-242.69334532,0.00025514,2]
[337087296,1725418025118,-314.5108329,0.00024658,2]
[337087297,1725418038166,-321.2275721,0.00024658,2]
[337087298,1725418038189,-128.7724279,0.00025392,2]
[337087299,1725418039122,-34.9288601,0.00025392,2]
[337087300,1725418039144,-411.74718381,0.00025481,2]
[337087301,1725418048373,-348.50234299,0.00025481,2]
[337087302,1725418048400,-33.41121701,0.00025514,2]
[337087303,1725418050103,-266.58878299,0.00025514,2]
[337087304,1725418050126,-300.0,0.00025514,2]
[337087305,1725418050149,-738.41401283,0.00025515,2]
[337087306,1725418053116,-714.21280903,0.00025515,2]
[337087314,1725418147142,-177.90907055,0.00025514,2]
[337087315,1725418157110,-122.09092945,0.00025514,2]